Cogmind - Beta 13 @@@ ROGUE MODE // 2024.04.01 @ 12:02:40 Player: Gingerlink Result: Destroyed by N4-LF6(R) with Subdweller Beam Cannon Performance ------------- Evolutions (0) 0 Regions Visited (2) 400 Robots Destroyed (11) 55 Value Destroyed (189) 189 Prototype IDs (0) 0 Alien Tech Used (0) 0 Bonus (0) 0 TOTAL SCORE: 644 Bonus ------- None Cogmind --------- Core Integrity 0/250 Matter 110/300 Energy 200/200 System Corruption 2% Temperature Cool (9) Movement Treading (160) Location -10/Subcaves Parts ------- > --- POWER (1) -------- Subdweller Power Source > --- PROPULSION (2) --- Light Treads Light Treads > --- UTILITY (2) ------ (None) > --- WEAPON (2) ------- (None) > --- INVENTORY (5) ---- Light Treads Peak State ------------ > --- POWER ------------ Ion Engine > --- PROPULSION ------- Light Treads Light Treads > --- UTILITY ---------- Large Storage Unit Structural Scanner > --- WEAPON ----------- Assault Rifle Light Assault Rifle > --- INVENTORY -------- Light Ion Engine Light Treads Light Treads Flight Unit EM Pulse Gun [Rating: 7] Favorites ----------- Power Ion Engine Engine Ion Engine Propulsion Light Treads Treads Light Treads Flight Unit Flight Unit Utility Large Storage Unit Device Structural Scanner Storage Large Storage Unit Weapon Light Assault Rifle Energy Gun EM Pulse Gun Ballistic Gun Light Assault Rifle Special Weapon Mining Laser Build | -11 -10 -10 ------- Run | Yrd Mat Sub Slots Evolved . | . . . Power . | . . . Propulsion . | . . . Utility . | . . . Weapon . | . . . Parts Attached 22 | 6 5 11 Power 4 | 1 1 2 Engine 4 | 1 1 2 Core . | . . . Reactor . | . . . Propulsion 6 | 2 . 4 Treads 5 | 2 . 3 Leg . | . . . Wheel . | . . . Hover . | . . . Flight 1 | . . 1 Utility 3 | 1 2 . Device 1 | . 1 . Storage 2 | 1 1 . Processor . | . . . Hackware . | . . . Protection . | . . . Artifact . | . . . Weapon 9 | 2 2 5 Energy Gun 2 | 1 . 1 Energy Cannon . | . . . Ballistic Gun 5 | 1 1 3 Ballistic Cannon . | . . . Launcher . | . . . Special Weapon 2 | . 1 1 Impact Weapon . | . . . Slashing Weapon . | . . . Piercing Weapon . | . . . Special Melee Weapon . | . . . Unidentified Prototypes . | . . . Parts Lost 9 | . 1 8 Power 2 | . 1 1 Propulsion 2 | . . 2 Utility . | . . . Weapon 5 | . . 5 Highest Loss Streak 4 | . 1 4 To Critical Strikes . | . . . Average Slot Usage (%) 85 | . 89 64 Engine 13 | . 13 8 Treads 25 | . 28 14 Device 4 | . 3 7 Storage 12 | . 14 7 Ballistic Gun 26 | . 27 17 Naked Turns 7 | . . 7 Heaviest Build 29 | 11 29 29 Greatest Support 40 | 40 40 40 Greatest Overweight (x) 2 | . . 2 Average Overweight (x) . | . . . Largest Inventory Capacity 15 | 8 15 15 Average Capacity 11 | 6 12 9 Most Carried 7 | 3 7 7 Average Carried 4 | 1 4 4 Final Capacity 15 | 8 15 5 Final Carried 6 | 3 6 1 Class Distribution -------------------- 100% | Mutant Dominant Class ---------------- Mutant | -10/Materials Mutant | -10/Subcaves Resources | -11 -10 -10 ----------- Run | Yrd Mat Sub Matter Collected 394 | 245 149 . Remotely . | . . . Salvage Created 248 | . 248 . Parts 19 | . 19 . Haulers Intercepted . | . . . Recyclers Shooed 1 | . 1 . Parts Field Recycled . | . . . Retrieved Matter . | . . . Parts Self-Destructed . | . . . Prevented . | . . . Kills | -11 -10 -10 ------- Run | Yrd Mat Sub Combat Hostiles Destroyed 8 | . 8 . Guns 8 | . 8 . Classes Destroyed 3 | . 3 . Watcher 3 | . 3 . Swarmer 6 | . 6 . Grunt 2 | . 2 . Best Kill Streak 4 | . 4 . Combat Bots Only 3 | . 3 . Max Kills in Single Turn 1 | . 1 . Gunslinging . | . . . Exploded . | . . . Melee . | . . . Uniques/NPCs Destroyed . | . . . Combat | -11 -10 -10 -------- Run | Yrd Mat Sub Hostile Shots Fired 113 | . 63 50 Missed 33 | . 22 11 Damage Taken 1262 | . 387 875 Core 265 | . 40 225 Absorbed by Shields . | . . . Core Remaining (%) 100 | 100 . . Volleys Fired 64 | . 48 16 Largest 2 | . 2 2 Hottest 120 | . 120 100 Shots Fired 125 | . 97 28 Gun 121 | . 96 25 Cannon . | . . . Launcher . | . . . Special 4 | . 1 3 Kinetic 116 | . 96 20 Thermal 4 | . 1 3 Explosive . | . . . Electromagnetic 5 | . . 5 Robot Hit Streak 6 | . 5 6 Robot Miss Streak 6 | . 6 1 Penetration Max . | . . . Secondary Targets 2 | . 2 . Max Gunslinging Chain 1 | . 1 . Shots Hit Robots 58 | . 38 20 Core Hits 20 | 1 19 . Critical Kills . | . . . Critical Parts Destroyed . | . . . Critical Strikes . | . . . Melee Attacks . | . . . Impact . | . . . Slashing . | . . . Piercing . | . . . Sneak Attacks . | . . . Combat Hostiles . | . . . Follow-up Attacks . | . . . Damage Inflicted 508 | 7 474 27 Guns 490 | . 463 27 Cannons . | . . . Explosions . | . . . Melee . | . . . Ramming 18 | 7 11 . Kinetic 490 | . 463 27 Thermal . | . . . Explosive . | . . . Electromagnetic . | . . . Impact . | . . . Slashing . | . . . Piercing . | . . . Highest Corruption 2 | . 2 2 Average Corruption 2 | . 2 2 Corruption Purged . | . . . Corruption Blocked . | . . . Effects 12 | . 12 . Message Errors 5 | . 5 . Matter Fused 2 | . 2 . Heat Flow Errors 2 | . 2 . Data Loss (minor) 2 | . 2 . Misfires 1 | . 1 . Overload Shots . | . . . Overflow Damage . | . . . Projectiles . | . . . Explosions . | . . . Melee . | . . . Knockbacks . | . . . Impact . | . . . Kinetic . | . . . Secondary . | . . . Self-Inflicted Damage . | . . . Shots . | . . . Rammed 7 | 4 3 . Targets Rammed 7 | 4 3 . Kicked . | . . . Crushed . | . . . Highest Temperature 268 | . 268 219 Average Temperature 79 | . 72 120 Received Heat Transfer 442 | . 102 340 Siege Activations . | . . . Robots Corrupted . | . . . Combat Hostiles . | . . . Parts Fried . | . . . Impact Corruptions . | . . . Robots Melted . | . . . Combat Hostiles . | . . . Parts Melted . | . . . Heat Transferred . | . . . Parts Sabotaged . | . . . Parts Stolen . | . . . Parts Stripped . | . . . Power Chain Reactions . | . . . Alert | -11 -10 -10 ------- Run | Yrd Mat Sub Peak Influence 169 | . 169 . Initial . | . . . Average 43 | . 47 . Maximum Alert Level . | . . . Low Security (%) 100 | 100 100 . Level 1 . | . . . Level 2 . | . . . Level 3 . | . . . Level 4 . | . . . Level 5 . | . . . High Security . | . . . Max Security . | . . . Squads Dispatched . | . . . Investigation . | . . . Extermination . | . . . Reinforcement . | . . . Assault . | . . . Garrison . | . . . Intercept . | . . . Searches Triggered . | . . . Construction Impeded . | . . . Haulers Reinforced . | . . . Active Scanning Responses . | . . . Cargo Convoy Interrupts . | . . . Stealth | -11 -10 -10 --------- Run | Yrd Mat Sub Distress Signals 1 | . 1 . Communications Jammed . | . . . Distress Signals . | . . . Times Spotted 21 | . 18 3 Peak Tracking Total 4 | . 4 3 Tactical Retreats . | . . . Traps | -11 -10 -10 ------- Run | Yrd Mat Sub Traps Triggered 1 | . 1 . Indirectly . | . . . Trap Hack Attempts . | . . . Triggered . | . . . Disarmed . | . . . Reprogrammed . | . . . Reused . | . . . Traps Extracted . | . . . Installed . | . . . Triggered . | . . . Machines | -11 -10 -10 ---------- Run | Yrd Mat Sub Machines Disabled . | . . . Max in Single Turn . | . . . Machines Repaired . | . . . Machines Dismantled . | . . . Machines Sabotaged . | . . . Overloaded Fab Kills . | . . . Hacking | -11 -10 -10 --------- Run | Yrd Mat Sub Machines Accessed . | . . . Terminals . | . . . Fabricators . | . . . Repair Stations . | . . . Recycling Units . | . . . Scanalyzers . | . . . Garrison Access . | . . . Total Hacks . | . . . Successful . | . . . Failed . | . . . Catastrophic . | . . . Database Lockouts . | . . . Manual . | . . . Terminals . | . . . Fabricators . | . . . Repair Stations . | . . . Recycling Units . | . . . Scanalyzers . | . . . Garrison Access . | . . . Terminal Hacks . | . . . Fabricator Hacks . | . . . Repair Station Hacks . | . . . Recycling Unit Hacks . | . . . Scanalyzer . | . . . Garrison Access Hacks . | . . . Unauthorized Hacks . | . . . Terminals . | . . . Fabricators . | . . . Repair Stations . | . . . Recycling Units . | . . . Scanalyzers . | . . . Garrison Access . | . . . Data Cores Recovered . | . . . Used . | . . . Hacking Detections . | . . . Full Trace Events . | . . . Feedback Events . | . . . Feedback Blocked . | . . . Robot Schematics Acquired . | . . . Robots Built . | . . . Authchips . | . . . Time . | . . . Total Robot Build Rating . | . . . Part Schematics Acquired . | . . . Parts Built . | . . . Authchips . | . . . Time . | . . . Total Part Build Rating . | . . . Parts Repaired . | . . . Time . | . . . Parts Recycled . | . . . Recycled Matter . | . . . Retrieved Matter . | . . . Retrieved Components . | . . . Parts Scanalyzed . | . . . Part Schematics Acquired . | . . . Parts Damaged . | . . . Bothacking | -11 -10 -10 ------------ Run | Yrd Mat Sub Used RIF Installer . | . . . Robots Hacked . | . . . Non-combat . | . . . Combat . | . . . Robot Hacks Applied . | . . . Relay Couplers Released . | . . . Fabnet Peak Effective % . | . . . Robots Rewired . | . . . Allies Hacked . | . . . Hacks Repelled . | . . . Allies | -11 -10 -10 -------- Run | Yrd Mat Sub Total Allies . | . . . Largest Group . | . . . Highest-Rated Group . | . . . Highest-Rated Ally . | . . . Total Orders . | . . . Ally Attacks . | . . . Total Damage . | . . . Kills . | . . . Allies Corrupted . | . . . Allies Melted . | . . . Intel | -11 -10 -10 ------- Run | Yrd Mat Sub Robot Analysis Total . | . . . Derelict Logs Recovered . | . . . Drone Launches . | . . . Drone Recoveries . | . . . Exploration | -11 -10 -10 ------------- Run | Yrd Mat Sub Turns Passed 1497 | 118 1159 220 Spaces Moved 913 | 66 627 220 Core 20 | 5 . 15 Treads 737 | 61 627 49 Legs . | . . . Wheels . | . . . Hover . | . . . Flight 156 | . . 156 Fastest Speed 40 | 50 160 40 Average Speed 138 | 151 160 71 Slowest Speed 160 | 160 160 160 Overloaded Moves . | . . . Propulsion Burnouts . | . . . Robots Hopped . | . . . Cave-ins Triggered . | . . . Exploration Rate (%) 32 | 5 76 15 Regions Visited 2 Branch Regions 1 Pre-discovered Areas . | . . . Known Exits Taken . | . . . Unknown Exits Taken 2 | 1 1 . Scrap Searched . | . . . Spaces Dug 2 | . . 2 Terrain Destroyed 2 | . . 2 Melee . | . . . Projectile 2 | . . 2 AOE . | . . . Terrain Rammed . | . . . Walls Destroyed . | . . . Machines Disabled . | . . . Actions | -11 -10 -10 --------- Run | Yrd Mat Sub Total 1027 | 79 694 254 Wait 1 | . 1 . Move 911 | 65 626 220 Hop . | . . . Pick Up 10 | 4 6 . Fast Attach 9 | 5 2 2 Attach 13 | 1 3 9 Detach 6 | . 2 4 Swap . | . . . Drop 6 | . 3 3 Fire 64 | . 48 16 Melee . | . . . Ram . | . . . Kick . | . . . Crush 7 | 4 3 . Escape Stasis . | . . . Rewire . | . . . Trap . | . . . Miscellaneous . | . . . Route ------- -11/Scrapyard -10/Materials (discovered 4 exits: [*Mat x2] / [*Min] / [*Sub]) -10/Subcaves History --------- Turn | Location | Event 47 | -11/Scrapyard | Discovered new exit (range 16) 119 | -11/Scrapyard | Entered Materials 330 | -10/Materials | Build established: Mutant 706 | -10/Materials | Discovered new exit (range 15) 858 | -10/Materials | Discovered new exit (range 15) 1023 | -10/Materials | Discovered new exit (range 3) 1026 | -10/Materials | Discovered new exit (range 13) 1278 | -10/Materials | Entered Subcaves 1427 | -10/Subcaves | Lost 4 parts (1p1n2w) 1471 | -10/Subcaves | Core integrity fell below 50% 1480 | -10/Subcaves | Core integrity fell below 20% 1498 | -10/Subcaves | Destroyed by N4-LF6(R) with Subdweller Beam Cannon Last Messages --------------- Assault Rifle destroyed. EM Pulse Gun destroyed. Dropped Lrg. Storage Unit. Dropped Ion Engine. Lgt. Ion Engine destroyed. Dropped Structural Scanner. To regain energy, simply wait via the mouse wheel, '.', or KP5. Also make sure your per-turn energy generation is a net positive, and consider deactivating power-draining parts if not. Mining Laser destroyed. Flight Unit destroyed. IW-2C6(R) destroyed. Acquired Sub. Power Source. Acquired Sub. Machine Gun. Critical hit (Meltdown: +250). 76-MBX(z): "She is not going to be happy we haven't found any suitable candidates yet." Lgt. Assault Rifle destroyed. N4-LF6(R) affixes Scrap Shield Fragment to Scrap Shield. Sub. Machine Gun destroyed. Map ----- +----------------------------------------------------+ | ?????????????????????????????????????????????????? | | ?????????????????????????????????????????????????# | | ????????????????????????????????????????????????# | | ????????????????????????????????????????????????# | | ??????????????????????????????????????????????## | | ?????????????????????????????????????????????# ? | | ????????????????????????????????????????????# #? | | ???????????????????????????????????????????# #???# | | ???????????????????????????????##?????????# #????? | | ???????????????????????????????# ##????### #?????? | | ???????????????????????????????# #?#### #??????? | | ???????????????????????????????# ### # ##?????## | | ???????????????????????????????# ### ##????### | | ???????????????????????????????# ## ##????# | | ???????????????????????????????# ### #????# | | ???????????????????????????????## #????# | | ????????????????????????????????## ##????## | | ?????????????????????????????????## #??????# | | ?????????????????????????????????## #??????# | | ????????????????????????????????## #?????## | | ????????????????????????????????# #????## | | ???????????????????????????###### ##???## | | ?????????????????????????### R #?#### | | ????????????????????????## R #### ## | | ???????????? ## ### % ## ####? | | ???????????? " @ ##"## ##??## | | ??????????????# "" ####### ##### | | ??????????????## " ##?????## | | ???????????????## " ""#????????# | | ????????????????# #####?????????# ### ## | | ??????????????? ???????????? ###?## ### | | ??????????????? ????????????# # ##????# ##?# | | ????????????????????????????# ?## ""?????## ##?# | | ???????????????????????????"" ???# #??????# #?# | | ???????????????????????????""???? ""??????###?## | | ??????????????????????????? ???? ""#???????????# | | ???????????????????????????????#"#"#????????????## | | ???????????????????????????????####??????????????? | | ?????????????????????????????????????????????????? | | ?????????????????????????????????????????????????? | | ?????????????????????????????????????????????????? | | ?????????????????????????????????????????????????? | | ?????????????????????????????????????????????????? | | ?????????????????????????????????????????????????? | | ?????????????????????????????????????????????????? | | ?????????????????????????????????????????????????? | | ?????????????????????????????????????????????????? | | ?????????????????????????????????????????????????? | | ?????????????????????????????????????????????????? | | ?????????????????????????????????????????????????? | +----------------------------------------------------+ Best States ------------- Heat Dissipation 25 Energy Generation 15 Energy Capacity 250 Matter Stores 300 Matter Capacity 300 Sight Range 16 Terrain Scan Density 10 Evasion (%) 62 Recoil Reduction 2 Item Schematics ----------------- None Robot Schematics ------------------ None Fabricated ------------ Nothing Alien Tech Used ----------------- None Achievements -------------- None Challenges ------------ None Game ------ Seed CryofiberReinforcedKit Manual? 0 Play Time 00:14:48 Cumulative 3.4 hours Start 2024.04.01 @ 11:47:17 End 2024.04.01 @ 12:02:40 Sessions 1 Manual Loads 0 Difficulty Rogue Special Mode None Game No. 7 Rogue 7 Adventurer 0 Explorer 0 Win Type - Total 0 Types 0/0/0/0/0/0/0/0/0 Lore% 0 Gallery% 6 Achievement% 6 Wizard Run 0 Options --------- Layout 0 ASCII 0 Keyboard 1 Movement Vi Keybinds 0 Fullscreen 2 Font 24/Smallcaps Map View 76x50 Zoom Use 0% Tactical HUD 0 Map Filters NONE Filters NONE Steam 1 RUN: 9334174e-533b-40f9-8b18-0c00477a0f3e